[Event "Titled Tuesday Blitz November 2 2021"]
[White "Pridorozhni, Aleksei"]
[Black "King, Alexander"]
[WhiteFideId "4127870"]
[BlackFideId "2063620"]
[WhiteElo "2565"]
[BlackElo "2306"]
[Result "0-1"]
[Round "03"]
[TimeControl "180+1"]
[Date "2021.11.02"]
[WhiteClock "0:00:30"]
[BlackClock "0:00:12"]

1. e4 {[%clk 0:02:56]}  e5 {[%clk 0:02:59]} 2. f4 {[%clk 0:02:56]}  exf4 {[%clk 0:02:59]} 3. Bc4 {[%clk 0:02:56]}  Qh4+ {[%clk 0:02:58]} 4. Kf1 {[%clk 0:02:56]}  d6 {[%clk 0:02:56]} 5. Nf3 {[%clk 0:02:56]}  Qh6 {[%clk 0:02:57]} 6. d4 {[%clk 0:02:57]}  Be6 {[%clk 0:02:56]} 7. d5 {[%clk 0:02:51]}  Bg4 {[%clk 0:02:49]} 8. Nc3 {[%clk 0:02:50]}  a6 {[%clk 0:02:40]} 9. Ne2 {[%clk 0:02:20]}  g5 {[%clk 0:02:18]} 10. h4 {[%clk 0:02:19]}  f6 {[%clk 0:02:07]} 11. Kf2 {[%clk 0:02:03]}  Qg7 {[%clk 0:02:04]} 12. Bd2 {[%clk 0:01:57]}  Nd7 {[%clk 0:02:03]} 13. hxg5 {[%clk 0:01:56]}  fxg5 {[%clk 0:02:01]} 14. Bc3 {[%clk 0:01:56]}  Ne5 {[%clk 0:02:01]} 15. Qd4 {[%clk 0:01:39]}  Bxf3 {[%clk 0:01:44]} 16. gxf3 {[%clk 0:01:39]}  Be7 {[%clk 0:01:41]} 17. Rag1 {[%clk 0:01:35]}  Bf6 {[%clk 0:01:40]} 18. Nxf4 {[%clk 0:01:13]}  Ng4+ {[%clk 0:01:38]} 19. Ke2 {[%clk 0:01:10]}  Bxd4 {[%clk 0:01:39]} 20. Ne6 {[%clk 0:01:11]}  Bxc3 {[%clk 0:01:30]} 21. Nxg7+ {[%clk 0:01:10]}  Bxg7 {[%clk 0:01:31]} 22. Rxg4 {[%clk 0:01:11]}  h6 {[%clk 0:01:31]} 23. Rgg1 {[%clk 0:01:01]}  Nf6 {[%clk 0:01:26]} 24. c3 {[%clk 0:01:02]}  Nd7 {[%clk 0:01:26]} 25. Ke3 {[%clk 0:01:00]}  Ne5 {[%clk 0:01:23]} 26. Be2 {[%clk 0:01:01]}  O-O {[%clk 0:01:16]} 27. Rh3 {[%clk 0:00:59]}  Rf4 {[%clk 0:01:15]} 28. b4 {[%clk 0:00:58]}  a5 {[%clk 0:01:12]} 29. a3 {[%clk 0:00:57]}  axb4 {[%clk 0:01:12]} 30. axb4 {[%clk 0:00:58]}  Ra3 {[%clk 0:01:11]} 31. Rc1 {[%clk 0:00:58]}  Ng6 {[%clk 0:01:04]} 32. Kd2 {[%clk 0:00:57]}  Rf8 {[%clk 0:01:04]} 33. Bc4 {[%clk 0:00:55]}  Ne5 {[%clk 0:01:01]} 34. Be2 {[%clk 0:00:54]}  Ra2+ {[%clk 0:00:57]} 35. Ke3 {[%clk 0:00:52]}  Rfa8 {[%clk 0:00:58]} 36. Bf1 {[%clk 0:00:38]}  Ng6 {[%clk 0:00:58]} 37. Rh1 {[%clk 0:00:35]}  Nf4 {[%clk 0:00:52]} 38. Bc4 {[%clk 0:00:35]}  Rg2 {[%clk 0:00:34]} 39. e5 {[%clk 0:00:35]}  Bxe5 {[%clk 0:00:28]} 40. Rxh6 {[%clk 0:00:34]}  Bg7 {[%clk 0:00:27]} 41. Re6 {[%clk 0:00:34]}  Nxe6 {[%clk 0:00:25]} 42. dxe6 {[%clk 0:00:35]}  Kf8 {[%clk 0:00:25]} 43. Rh1 {[%clk 0:00:34]}  c6 {[%clk 0:00:22]} 44. Bd3 {[%clk 0:00:33]}  Ke7 {[%clk 0:00:19]} 45. Rh7 {[%clk 0:00:33]}  Kf6 {[%clk 0:00:19]} 46. Be4 {[%clk 0:00:33]}  Re8 {[%clk 0:00:19]} 47. f4 {[%clk 0:00:33]}  gxf4+ {[%clk 0:00:20]} 48. Kf3 {[%clk 0:00:32]}  Rg5 {[%clk 0:00:15]} 49. Kxf4 {[%clk 0:00:33]}  Rxe6 {[%clk 0:00:14]} 50. Rh1 {[%clk 0:00:33]}  Rg4+ {[%clk 0:00:12]} 51. Kxg4 {[%clk 0:00:33]}  Rxe4+ {[%clk 0:00:13]} 52. Kf3 {[%clk 0:00:34]}  Rc4 {[%clk 0:00:14]} 53. Rf1 {[%clk 0:00:33]}  Rxc3+ {[%clk 0:00:13]} 54. Ke4+ {[%clk 0:00:34]}  Ke6 {[%clk 0:00:14]} 55. b5 {[%clk 0:00:35]}  Be5 {[%clk 0:00:11]} 56. bxc6 {[%clk 0:00:30]}  d5# {[%clk 0:00:12]} 0-1


[Site "https://www.chess.com"]

[Event "Titled Tuesday Blitz November 2 2021"]
[White "Rangel, Daniel"]
[Black "Karolczuk, Iwo"]
[WhiteFideId "2124475"]
[BlackFideId "21816972"]
[WhiteElo "2187"]
[BlackElo "2093"]
[Result "0-1"]
[Round "03"]
[TimeControl "180+1"]
[Date "2021.11.02"]
[WhiteClock "0:00:06"]
[BlackClock "0:00:04"]

1. c4 {[%clk 0:03:00]}  Nf6 {[%clk 0:02:56]} 2. g3 {[%clk 0:03:00]}  g6 {[%clk 0:02:56]} 3. Bg2 {[%clk 0:03:01]}  Bg7 {[%clk 0:02:56]} 4. Nc3 {[%clk 0:03:01]}  O-O {[%clk 0:02:57]} 5. d3 {[%clk 0:03:01]}  d6 {[%clk 0:02:47]} 6. e4 {[%clk 0:03:00]}  c5 {[%clk 0:02:45]} 7. Nge2 {[%clk 0:03:00]}  Nc6 {[%clk 0:02:45]} 8. O-O {[%clk 0:03:00]}  Ne8 {[%clk 0:02:45]} 9. Be3 {[%clk 0:02:58]}  Nd4 {[%clk 0:02:44]} 10. h3 {[%clk 0:02:52]}  Nc7 {[%clk 0:02:43]} 11. f4 {[%clk 0:02:51]}  Rb8 {[%clk 0:02:42]} 12. a4 {[%clk 0:02:50]}  a6 {[%clk 0:02:36]} 13. a5 {[%clk 0:02:28]}  b5 {[%clk 0:02:33]} 14. axb6 {[%clk 0:02:26]}  Rxb6 {[%clk 0:02:32]} 15. Ra2 {[%clk 0:02:25]}  Bd7 {[%clk 0:02:16]} 16. g4 {[%clk 0:02:19]}  Qb8 {[%clk 0:02:14]} 17. Qd2 {[%clk 0:02:01]}  e6 {[%clk 0:01:44]} 18. f5 {[%clk 0:01:54]}  Be5 {[%clk 0:01:21]} 19. Rf2 {[%clk 0:01:38]}  Bc6 {[%clk 0:00:55]} 20. Bh6 {[%clk 0:01:35]}  Re8 {[%clk 0:00:48]} 21. Qg5 {[%clk 0:01:11]}  Qd8 {[%clk 0:00:46]} 22. f6 {[%clk 0:01:10]}  Nxe2+ {[%clk 0:00:26]} 23. Nxe2 {[%clk 0:01:10]}  Rxb2 {[%clk 0:00:26]} 24. Rxb2 {[%clk 0:01:10]}  Bxb2 {[%clk 0:00:27]} 25. Bg7 {[%clk 0:01:10]}  e5 {[%clk 0:00:19]} 26. Qh6 {[%clk 0:01:08]}  Ne6 {[%clk 0:00:19]} 27. Rf5 {[%clk 0:00:58]}  Bd4+ {[%clk 0:00:10]} 28. Kh2 {[%clk 0:00:49]}  a5 {[%clk 0:00:07]} 29. Ng3 {[%clk 0:00:49]}  a4 {[%clk 0:00:04]} 30. h4 {[%clk 0:00:34]}  a3 {[%clk 0:00:04]} 31. h5 {[%clk 0:00:35]}  Qd7 {[%clk 0:00:03]} 32. hxg6 {[%clk 0:00:33]}  fxg6 {[%clk 0:00:03]} 33. f7+ {[%clk 0:00:33]}  Qxf7 {[%clk 0:00:04]} 34. Rxf7 {[%clk 0:00:34]}  Kxf7 {[%clk 0:00:05]} 35. Qxh7 {[%clk 0:00:34]}  Nxg7 {[%clk 0:00:05]} 36. Nf5 {[%clk 0:00:20]}  gxf5 {[%clk 0:00:05]} 37. exf5 {[%clk 0:00:21]}  a2 {[%clk 0:00:04]} 38. Qg6+ {[%clk 0:00:19]}  Ke7 {[%clk 0:00:04]} 39. Qxg7+ {[%clk 0:00:18]}  Kd8 {[%clk 0:00:04]} 40. Bxc6 {[%clk 0:00:18]}  Re7 {[%clk 0:00:03]} 41. Qf8+ {[%clk 0:00:19]}  Kc7 {[%clk 0:00:02]} 42. Qxe7+ {[%clk 0:00:18]}  Kxc6 {[%clk 0:00:02]} 43. Qe8+ {[%clk 0:00:19]}  Kc7 {[%clk 0:00:02]} 44. Qe7+ {[%clk 0:00:12]}  Kc6 {[%clk 0:00:03]} 45. Qe8+ {[%clk 0:00:10]}  Kc7 {[%clk 0:00:03]} 46. Qa4 {[%clk 0:00:09]}  a1=Q {[%clk 0:00:03]} 47. Qxa1 {[%clk 0:00:09]}  Bxa1 {[%clk 0:00:04]} 48. g5 {[%clk 0:00:09]}  Kd7 {[%clk 0:00:04]} 49. Kg3 {[%clk 0:00:09]}  Ke7 {[%clk 0:00:04]} 50. Kf3 {[%clk 0:00:10]}  Bb2 {[%clk 0:00:03]} 51. Ke4 {[%clk 0:00:10]}  Bc1 {[%clk 0:00:03]} 52. g6 {[%clk 0:00:08]}  Kf6 {[%clk 0:00:04]} 53. Kd5 {[%clk 0:00:08]}  Bh6 {[%clk 0:00:03]} 54. Kxd6 {[%clk 0:00:09]}  Bf8+ {[%clk 0:00:03]} 55. Kd7 {[%clk 0:00:07]}  Kxf5 {[%clk 0:00:04]} 56. Ke8 {[%clk 0:00:08]}  Bh6 {[%clk 0:00:01]} 57. Kf7 {[%clk 0:00:08]}  e4 {[%clk 0:00:01]} 58. dxe4+ {[%clk 0:00:07]}  Kxe4 {[%clk 0:00:02]} 59. Ke6 {[%clk 0:00:07]}  Kd4 {[%clk 0:00:03]} 60. Kf5 {[%clk 0:00:05]}  Kxc4 {[%clk 0:00:03]} 61. Kg4 {[%clk 0:00:05]}  Kd3 {[%clk 0:00:03]} 62. Kh5 {[%clk 0:00:06]}  Bg7 {[%clk 0:00:03]} 63. Kg5 {[%clk 0:00:07]}  Ke4 {[%clk 0:00:03]} 64. Kh5 {[%clk 0:00:06]}  c4 {[%clk 0:00:04]} 0-1


[Site "https://www.chess.com"]

[Event "Titled Tuesday Blitz November 2 2021"]
[White "Rasulov, Vugar"]
[Black "Petesch, Gabriel"]
[WhiteFideId "13402390"]
[BlackFideId "2032465"]
[WhiteElo "2560"]
[BlackElo "2374"]
[Result "1-0"]
[Round "03"]
[TimeControl "180+1"]
[Date "2021.11.02"]
[WhiteClock "0:00:11"]
[BlackClock "0:00:03"]

1. d4 {[%clk 0:03:00]}  Nf6 {[%clk 0:02:58]} 2. c4 {[%clk 0:03:01]}  e6 {[%clk 0:02:51]} 3. Nf3 {[%clk 0:03:01]}  Bb4+ {[%clk 0:02:45]} 4. Nbd2 {[%clk 0:03:00]}  d5 {[%clk 0:02:44]} 5. e3 {[%clk 0:02:58]}  O-O {[%clk 0:02:41]} 6. Be2 {[%clk 0:02:58]}  b6 {[%clk 0:02:38]} 7. O-O {[%clk 0:02:57]}  Bb7 {[%clk 0:02:38]} 8. Ne5 {[%clk 0:02:50]}  Nbd7 {[%clk 0:02:27]} 9. Ndf3 {[%clk 0:02:49]}  Bd6 {[%clk 0:02:22]} 10. b3 {[%clk 0:02:45]}  Ne4 {[%clk 0:02:18]} 11. Bb2 {[%clk 0:02:45]}  Qe7 {[%clk 0:02:11]} 12. Qc2 {[%clk 0:02:41]}  c5 {[%clk 0:02:02]} 13. Nxd7 {[%clk 0:02:37]}  Qxd7 {[%clk 0:02:02]} 14. dxc5 {[%clk 0:02:37]}  Bxc5 {[%clk 0:01:45]} 15. Rad1 {[%clk 0:02:36]}  Qe7 {[%clk 0:01:44]} 16. Ne5 {[%clk 0:02:29]}  Rac8 {[%clk 0:01:32]} 17. Bf3 {[%clk 0:02:25]}  Ng5 {[%clk 0:01:27]} 18. Be2 {[%clk 0:02:16]}  dxc4 {[%clk 0:01:14]} 19. bxc4 {[%clk 0:02:13]}  Rfd8 {[%clk 0:00:57]} 20. Qa4 {[%clk 0:02:12]}  a6 {[%clk 0:00:48]} 21. Ba1 {[%clk 0:02:01]}  Ne4 {[%clk 0:00:48]} 22. Qc2 {[%clk 0:01:48]}  f5 {[%clk 0:00:42]} 23. Bf3 {[%clk 0:01:41]}  Bd6 {[%clk 0:00:37]} 24. Rd3 {[%clk 0:01:31]}  Qc7 {[%clk 0:00:37]} 25. Rfd1 {[%clk 0:01:28]}  Bxe5 {[%clk 0:00:31]} 26. Bxe5 {[%clk 0:01:28]}  Qe7 {[%clk 0:00:29]} 27. Rd4 {[%clk 0:01:14]}  Rxd4 {[%clk 0:00:27]} 28. Rxd4 {[%clk 0:01:11]}  Qc5 {[%clk 0:00:25]} 29. Bg3 {[%clk 0:00:54]}  b5 {[%clk 0:00:22]} 30. Qb2 {[%clk 0:00:47]}  Bc6 {[%clk 0:00:22]} 31. Bxe4 {[%clk 0:00:43]}  fxe4 {[%clk 0:00:19]} 32. h4 {[%clk 0:00:37]}  bxc4 {[%clk 0:00:17]} 33. Qc3 {[%clk 0:00:38]}  Bd5 {[%clk 0:00:17]} 34. Rd2 {[%clk 0:00:37]}  Qe7 {[%clk 0:00:13]} 35. Be5 {[%clk 0:00:27]}  Qa7 {[%clk 0:00:12]} 36. Rb2 {[%clk 0:00:24]}  a5 {[%clk 0:00:12]} 37. a4 {[%clk 0:00:23]}  Re8 {[%clk 0:00:10]} 38. g3 {[%clk 0:00:23]}  Qf7 {[%clk 0:00:09]} 39. Kh2 {[%clk 0:00:23]}  Rf8 {[%clk 0:00:08]} 40. Kg1 {[%clk 0:00:20]}  h5 {[%clk 0:00:09]} 41. Qxa5 {[%clk 0:00:18]}  Qg6 {[%clk 0:00:06]} 42. Qc3 {[%clk 0:00:17]}  Rf7 {[%clk 0:00:06]} 43. a5 {[%clk 0:00:17]}  Kh7 {[%clk 0:00:06]} 44. a6 {[%clk 0:00:17]}  Ra7 {[%clk 0:00:06]} 45. Ra2 {[%clk 0:00:17]}  Qf7 {[%clk 0:00:06]} 46. Bd4 {[%clk 0:00:16]}  Ra8 {[%clk 0:00:06]} 47. a7 {[%clk 0:00:17]}  Qd7 {[%clk 0:00:06]} 48. Ra1 {[%clk 0:00:14]}  e5 {[%clk 0:00:06]} 49. Bc5 {[%clk 0:00:14]}  Qc7 {[%clk 0:00:05]} 50. Ra5 {[%clk 0:00:13]}  Kg6 {[%clk 0:00:04]} 51. Qa3 {[%clk 0:00:13]}  Kf5 {[%clk 0:00:04]} 52. Bd6 {[%clk 0:00:13]}  Qc6 {[%clk 0:00:03]} 53. Bb8 {[%clk 0:00:12]}  c3 {[%clk 0:00:03]} 54. Qf8+ {[%clk 0:00:12]}  Kg6 {[%clk 0:00:03]} 55. Rc5 {[%clk 0:00:10]}  c2 {[%clk 0:00:03]} 56. Rxc6+ {[%clk 0:00:10]}  Bxc6 {[%clk 0:00:04]} 57. Qd6+ {[%clk 0:00:10]}  Kh7 {[%clk 0:00:03]} 58. Qxc6 {[%clk 0:00:11]} 1-0


[Site "https://www.chess.com"]

[Event "Titled Tuesday Blitz November 2 2021"]
[White "Rostovtsev, Dmitry"]
[Black "Dilmukhametov, Artur"]
[WhiteFideId "34278320"]
[BlackFideId "24179922"]
[WhiteElo "2294"]
[BlackElo "2272"]
[Result "0-1"]
[Round "03"]
[TimeControl "180+1"]
[Date "2021.11.02"]
[WhiteClock "0:00:03"]
[BlackClock "0:00:45"]

1. e4 {[%clk 0:03:00]}  e6 {[%clk 0:02:53]} 2. d4 {[%clk 0:02:59]}  d5 {[%clk 0:02:51]} 3. Nd2 {[%clk 0:03:00]}  Nf6 {[%clk 0:02:48]} 4. e5 {[%clk 0:02:59]}  Nfd7 {[%clk 0:02:48]} 5. f4 {[%clk 0:02:59]}  c5 {[%clk 0:02:49]} 6. c3 {[%clk 0:03:00]}  Nc6 {[%clk 0:02:49]} 7. Ndf3 {[%clk 0:03:00]}  f5 {[%clk 0:02:50]} 8. Bd3 {[%clk 0:02:52]}  Be7 {[%clk 0:02:49]} 9. Ne2 {[%clk 0:02:52]}  h5 {[%clk 0:02:48]} 10. Be3 {[%clk 0:02:43]}  g6 {[%clk 0:02:47]} 11. c4 {[%clk 0:02:20]}  cxd4 {[%clk 0:02:46]} 12. Nexd4 {[%clk 0:02:13]}  Nc5 {[%clk 0:02:33]} 13. O-O {[%clk 0:02:00]}  Nxd3 {[%clk 0:01:47]} 14. Qxd3 {[%clk 0:02:00]}  Nb4 {[%clk 0:01:43]} 15. Qb3 {[%clk 0:01:37]}  dxc4 {[%clk 0:01:42]} 16. Qxc4 {[%clk 0:01:37]}  Nd5 {[%clk 0:01:42]} 17. Bf2 {[%clk 0:01:21]}  Bd7 {[%clk 0:01:37]} 18. Nb5 {[%clk 0:00:59]}  Bxb5 {[%clk 0:01:25]} 19. Qxb5+ {[%clk 0:00:59]}  Qd7 {[%clk 0:01:26]} 20. Qxd7+ {[%clk 0:00:40]}  Kxd7 {[%clk 0:01:27]} 21. g3 {[%clk 0:00:40]}  Rac8 {[%clk 0:01:25]} 22. Rac1 {[%clk 0:00:41]}  Rxc1 {[%clk 0:01:19]} 23. Rxc1 {[%clk 0:00:42]}  Rc8 {[%clk 0:01:19]} 24. Rxc8 {[%clk 0:00:42]}  Kxc8 {[%clk 0:01:20]} 25. a3 {[%clk 0:00:39]}  a6 {[%clk 0:01:18]} 26. Kf1 {[%clk 0:00:39]}  Kd7 {[%clk 0:01:18]} 27. Ke2 {[%clk 0:00:39]}  Kc6 {[%clk 0:01:19]} 28. Kd3 {[%clk 0:00:37]}  Bd8 {[%clk 0:01:11]} 29. Nd4+ {[%clk 0:00:34]}  Kd7 {[%clk 0:01:11]} 30. Nb3 {[%clk 0:00:34]}  b6 {[%clk 0:01:10]} 31. Nd2 {[%clk 0:00:31]}  Bc7 {[%clk 0:01:09]} 32. Nc4 {[%clk 0:00:31]}  Kc6 {[%clk 0:01:07]} 33. Nd2 {[%clk 0:00:29]}  Bd8 {[%clk 0:01:05]} 34. b4 {[%clk 0:00:28]}  Kb5 {[%clk 0:01:01]} 35. Kc2 {[%clk 0:00:22]}  Kc6 {[%clk 0:00:56]} 36. Kb3 {[%clk 0:00:20]}  b5 {[%clk 0:00:51]} 37. Nf3 {[%clk 0:00:20]}  Bb6 {[%clk 0:00:52]} 38. Bxb6 {[%clk 0:00:19]}  Nxb6 {[%clk 0:00:52]} 39. Kc3 {[%clk 0:00:16]}  Kd5 {[%clk 0:00:52]} 40. Nh4 {[%clk 0:00:16]}  Nc4 {[%clk 0:00:51]} 41. Kb3 {[%clk 0:00:09]}  Nd2+ {[%clk 0:00:50]} 42. Kc2 {[%clk 0:00:10]}  Nf1 {[%clk 0:00:51]} 43. Nxg6 {[%clk 0:00:06]}  Nxh2 {[%clk 0:00:51]} 44. Ne7+ {[%clk 0:00:04]}  Ke4 {[%clk 0:00:50]} 45. Nc6 {[%clk 0:00:04]}  Nf1 {[%clk 0:00:50]} 46. Nb8 {[%clk 0:00:04]}  Nxg3 {[%clk 0:00:49]} 47. Nxa6 {[%clk 0:00:05]}  h4 {[%clk 0:00:50]} 48. a4 {[%clk 0:00:06]}  h3 {[%clk 0:00:48]} 49. Nc5+ {[%clk 0:00:05]}  Kd5 {[%clk 0:00:48]} 50. Nd3 {[%clk 0:00:04]}  h2 {[%clk 0:00:45]} 51. Nf2 {[%clk 0:00:04]}  bxa4 {[%clk 0:00:45]} 52. Kb2 {[%clk 0:00:04]}  Kc4 {[%clk 0:00:44]} 53. Ka3 {[%clk 0:00:03]}  Kb5 {[%clk 0:00:45]} 0-1


[Site "https://www.chess.com"]

[Event "Titled Tuesday Blitz November 2 2021"]
[White "Sanal, Vahap"]
[Black "Petrovskyi, Vadym"]
[WhiteFideId "6300545"]
[BlackFideId "14165210"]
[WhiteElo "2492"]
[BlackElo "2334"]
[Result "1-0"]
[Round "03"]
[TimeControl "180+1"]
[Date "2021.11.02"]
[WhiteClock "0:00:59"]
[BlackClock "0:00:02"]

1. e4 {[%clk 0:03:00]}  c5 {[%clk 0:03:00]} 2. Nc3 {[%clk 0:02:59]}  Nc6 {[%clk 0:02:59]} 3. Bb5 {[%clk 0:02:56]}  Nd4 {[%clk 0:02:57]} 4. Nf3 {[%clk 0:02:56]}  e6 {[%clk 0:02:56]} 5. O-O {[%clk 0:02:53]}  a6 {[%clk 0:02:56]} 6. Bd3 {[%clk 0:02:53]}  b5 {[%clk 0:02:56]} 7. Nxd4 {[%clk 0:02:51]}  cxd4 {[%clk 0:02:57]} 8. Ne2 {[%clk 0:02:52]}  Qb6 {[%clk 0:02:56]} 9. c3 {[%clk 0:02:51]}  dxc3 {[%clk 0:02:55]} 10. dxc3 {[%clk 0:02:51]}  Nf6 {[%clk 0:02:52]} 11. a4 {[%clk 0:02:47]}  Bb7 {[%clk 0:02:51]} 12. axb5 {[%clk 0:02:45]}  axb5 {[%clk 0:02:52]} 13. Be3 {[%clk 0:02:44]}  Bc5 {[%clk 0:02:50]} 14. Bxc5 {[%clk 0:02:41]}  Qxc5 {[%clk 0:02:49]} 15. b4 {[%clk 0:02:32]}  Qb6 {[%clk 0:02:48]} 16. Rxa8+ {[%clk 0:02:31]}  Bxa8 {[%clk 0:02:49]} 17. Nd4 {[%clk 0:02:30]}  Bxe4 {[%clk 0:02:27]} 18. Bxe4 {[%clk 0:02:25]}  Nxe4 {[%clk 0:02:26]} 19. Qg4 {[%clk 0:02:24]}  Nxc3 {[%clk 0:02:24]} 20. Qg3 {[%clk 0:02:12]}  Qxd4 {[%clk 0:01:59]} 21. Qb8+ {[%clk 0:02:12]}  Ke7 {[%clk 0:01:59]} 22. Qxh8 {[%clk 0:02:12]}  Ne2+ {[%clk 0:01:22]} 23. Kh1 {[%clk 0:02:12]}  Qd3 {[%clk 0:01:23]} 24. Ra1 {[%clk 0:02:05]}  Qc3 {[%clk 0:01:21]} 25. Qa8 {[%clk 0:01:56]}  Nc1 {[%clk 0:01:13]} 26. h3 {[%clk 0:01:50]}  Nd3 {[%clk 0:01:05]} 27. Rf1 {[%clk 0:01:48]}  Qxb4 {[%clk 0:01:02]} 28. Qf3 {[%clk 0:01:45]}  Qd4 {[%clk 0:00:59]} 29. Kg1 {[%clk 0:01:42]}  Ne5 {[%clk 0:00:56]} 30. Qg3 {[%clk 0:01:41]}  Nc6 {[%clk 0:00:51]} 31. Qg5+ {[%clk 0:01:40]}  Qf6 {[%clk 0:00:51]} 32. Qxb5 {[%clk 0:01:40]}  Qe5 {[%clk 0:00:50]} 33. Qd3 {[%clk 0:01:39]}  h6 {[%clk 0:00:49]} 34. Rd1 {[%clk 0:01:40]}  Qc7 {[%clk 0:00:35]} 35. Qa3+ {[%clk 0:01:39]}  Kf6 {[%clk 0:00:35]} 36. Rd3 {[%clk 0:01:37]}  Ne5 {[%clk 0:00:33]} 37. Rg3 {[%clk 0:01:33]}  g5 {[%clk 0:00:31]} 38. Qa1 {[%clk 0:01:29]}  Kg6 {[%clk 0:00:29]} 39. Rc3 {[%clk 0:01:26]}  Qd6 {[%clk 0:00:27]} 40. Rc8 {[%clk 0:01:26]}  f6 {[%clk 0:00:22]} 41. Qa8 {[%clk 0:01:18]}  Kf5 {[%clk 0:00:13]} 42. Rc1 {[%clk 0:01:12]}  Qd2 {[%clk 0:00:12]} 43. Rf1 {[%clk 0:01:11]}  Qd4 {[%clk 0:00:07]} 44. Qg8 {[%clk 0:01:09]}  Ng6 {[%clk 0:00:04]} 45. Qh7 {[%clk 0:01:09]}  Qd6 {[%clk 0:00:03]} 46. g4+ {[%clk 0:01:08]}  Kf4 {[%clk 0:00:01]} 47. Qxg6 {[%clk 0:01:09]}  Qd4 {[%clk 0:00:02]} 48. Qxh6 {[%clk 0:01:04]}  Kf3 {[%clk 0:00:02]} 49. Qg6 {[%clk 0:01:02]}  e5 {[%clk 0:00:03]} 50. Qf5+ {[%clk 0:01:01]}  Ke2 {[%clk 0:00:02]} 51. Qc2+ {[%clk 0:01:00]}  Kf3 {[%clk 0:00:02]} 52. Rd1 {[%clk 0:00:59]} 1-0


[Site "https://www.chess.com"]

[Event "Titled Tuesday Blitz November 2 2021"]
[White "Srebrnic, Marko"]
[Black "Cunjalo, Faris"]
[WhiteFideId "14603616"]
[BlackFideId "14410710"]
[WhiteElo "2340"]
[BlackElo "2234"]
[Result "0-1"]
[Round "03"]
[TimeControl "180+1"]
[Date "2021.11.02"]
[WhiteClock "0:00:06"]
[BlackClock "0:00:57"]

1. e4 {[%clk 0:03:00]}  g6 {[%clk 0:03:00]} 2. Nf3 {[%clk 0:02:56]}  Bg7 {[%clk 0:03:00]} 3. Nc3 {[%clk 0:02:55]}  d6 {[%clk 0:03:01]} 4. d3 {[%clk 0:02:50]}  Bg4 {[%clk 0:02:59]} 5. Be2 {[%clk 0:02:50]}  c5 {[%clk 0:02:58]} 6. O-O {[%clk 0:02:50]}  Nc6 {[%clk 0:02:57]} 7. a3 {[%clk 0:02:47]}  Bxf3 {[%clk 0:02:51]} 8. Bxf3 {[%clk 0:02:46]}  Nf6 {[%clk 0:02:51]} 9. Be3 {[%clk 0:02:38]}  O-O {[%clk 0:02:49]} 10. Be2 {[%clk 0:02:38]}  Rb8 {[%clk 0:02:47]} 11. Qd2 {[%clk 0:02:37]}  b5 {[%clk 0:02:44]} 12. h3 {[%clk 0:02:20]}  Nd7 {[%clk 0:02:38]} 13. f4 {[%clk 0:02:17]}  Nd4 {[%clk 0:02:38]} 14. Rf2 {[%clk 0:02:13]}  a5 {[%clk 0:02:34]} 15. Raf1 {[%clk 0:02:09]}  b4 {[%clk 0:02:34]} 16. axb4 {[%clk 0:02:08]}  cxb4 {[%clk 0:02:25]} 17. Nd1 {[%clk 0:02:08]}  a4 {[%clk 0:02:22]} 18. f5 {[%clk 0:02:01]}  a3 {[%clk 0:02:15]} 19. bxa3 {[%clk 0:02:01]}  bxa3 {[%clk 0:02:15]} 20. c3 {[%clk 0:02:01]}  Nxe2+ {[%clk 0:02:13]} 21. Rxe2 {[%clk 0:01:53]}  Qa5 {[%clk 0:02:09]} 22. Qa2 {[%clk 0:01:33]}  Nc5 {[%clk 0:02:02]} 23. Rd2 {[%clk 0:01:04]}  Nb3 {[%clk 0:01:32]} 24. Rc2 {[%clk 0:00:57]}  Qa6 {[%clk 0:01:23]} 25. Nf2 {[%clk 0:00:52]}  Nc5 {[%clk 0:01:19]} 26. Bxc5 {[%clk 0:00:50]}  dxc5 {[%clk 0:01:20]} 27. Ra1 {[%clk 0:00:38]}  Ra8 {[%clk 0:01:14]} 28. fxg6 {[%clk 0:00:22]}  hxg6 {[%clk 0:01:13]} 29. h4 {[%clk 0:00:22]}  Rfb8 {[%clk 0:01:02]} 30. h5 {[%clk 0:00:19]}  Rb2 {[%clk 0:01:02]} 31. hxg6 {[%clk 0:00:06]}  Rxa2 {[%clk 0:01:02]} 32. Rcxa2 {[%clk 0:00:07]}  Bxc3 {[%clk 0:00:58]} 33. Rc1 {[%clk 0:00:07]}  Bd4 {[%clk 0:00:56]} 34. gxf7+ {[%clk 0:00:06]}  Kxf7 {[%clk 0:00:57]} 0-1


[Site "https://www.chess.com"]

[Event "Titled Tuesday Blitz November 2 2021"]
[White "Urazayev, Arystanbek"]
[Black "Horobetz, Graham"]
[WhiteFideId "13709810"]
[BlackFideId "2047322"]
[WhiteElo "2321"]
[BlackElo "2631"]
[Result "1-0"]
[Round "03"]
[TimeControl "180+1"]
[Date "2021.11.02"]
[WhiteClock "0:00:22"]
[BlackClock "0:00:03"]

1. e4 {[%clk 0:03:00]}  c5 {[%clk 0:02:59]} 2. Nf3 {[%clk 0:03:01]}  d6 {[%clk 0:02:59]} 3. d4 {[%clk 0:03:01]}  cxd4 {[%clk 0:02:59]} 4. Nxd4 {[%clk 0:03:02]}  Nf6 {[%clk 0:03:00]} 5. Nc3 {[%clk 0:03:03]}  a6 {[%clk 0:03:00]} 6. Rg1 {[%clk 0:03:02]}  e5 {[%clk 0:02:57]} 7. Nb3 {[%clk 0:03:02]}  h6 {[%clk 0:02:50]} 8. g4 {[%clk 0:03:02]}  Be6 {[%clk 0:02:28]} 9. h4 {[%clk 0:03:01]}  Nc6 {[%clk 0:02:14]} 10. g5 {[%clk 0:03:01]}  hxg5 {[%clk 0:02:14]} 11. hxg5 {[%clk 0:03:01]}  Nd7 {[%clk 0:02:12]} 12. g6 {[%clk 0:03:02]}  Nf6 {[%clk 0:01:54]} 13. gxf7+ {[%clk 0:02:56]}  Bxf7 {[%clk 0:01:55]} 14. Bg5 {[%clk 0:02:54]}  Be7 {[%clk 0:01:46]} 15. Qd2 {[%clk 0:02:54]}  Qc7 {[%clk 0:01:36]} 16. Bxf6 {[%clk 0:02:54]}  Bxf6 {[%clk 0:01:34]} 17. Nd5 {[%clk 0:02:55]}  Bxd5 {[%clk 0:01:31]} 18. exd5 {[%clk 0:02:47]}  Nd4 {[%clk 0:01:11]} 19. Nxd4 {[%clk 0:02:34]}  exd4 {[%clk 0:01:12]} 20. O-O-O {[%clk 0:02:33]}  O-O-O {[%clk 0:01:11]} 21. Kb1 {[%clk 0:02:30]}  Kb8 {[%clk 0:01:11]} 22. Bd3 {[%clk 0:02:29]}  Rh4 {[%clk 0:01:08]} 23. Qe2 {[%clk 0:02:24]}  Rdh8 {[%clk 0:01:03]} 24. a3 {[%clk 0:02:18]}  Be5 {[%clk 0:01:02]} 25. Qf3 {[%clk 0:02:08]}  Qe7 {[%clk 0:01:00]} 26. Rg6 {[%clk 0:02:03]}  Rf4 {[%clk 0:00:57]} 27. Qe2 {[%clk 0:02:01]}  Rhf8 {[%clk 0:00:56]} 28. Rf1 {[%clk 0:01:52]}  Qh4 {[%clk 0:00:54]} 29. f3 {[%clk 0:01:26]}  Qh3 {[%clk 0:00:30]} 30. Qd2 {[%clk 0:00:40]}  Rxf3 {[%clk 0:00:22]} 31. Rd1 {[%clk 0:00:38]}  Qc8 {[%clk 0:00:16]} 32. Qb4 {[%clk 0:00:37]}  Qc5 {[%clk 0:00:13]} 33. Qb3 {[%clk 0:00:35]}  Ka7 {[%clk 0:00:12]} 34. Re6 {[%clk 0:00:35]}  R8f7 {[%clk 0:00:12]} 35. Re8 {[%clk 0:00:35]}  Rc7 {[%clk 0:00:12]} 36. Rh1 {[%clk 0:00:33]}  Rf2 {[%clk 0:00:11]} 37. Rhh8 {[%clk 0:00:31]}  b5 {[%clk 0:00:08]} 38. Ra8+ {[%clk 0:00:31]}  Kb6 {[%clk 0:00:08]} 39. a4 {[%clk 0:00:24]}  Rg2 {[%clk 0:00:04]} 40. Rhb8+ {[%clk 0:00:24]}  Rb7 {[%clk 0:00:04]} 41. a5+ {[%clk 0:00:24]}  Kc7 {[%clk 0:00:02]} 42. Rc8+ {[%clk 0:00:24]}  Kd7 {[%clk 0:00:03]} 43. Rxc5 {[%clk 0:00:24]}  dxc5 {[%clk 0:00:03]} 44. d6 {[%clk 0:00:24]}  Kxd6 {[%clk 0:00:02]} 45. Be4 {[%clk 0:00:22]}  Rg1+ {[%clk 0:00:03]} 46. Ka2 {[%clk 0:00:22]}  Rc7 {[%clk 0:00:03]} 47. Qd5+ {[%clk 0:00:22]} 1-0


[Site "https://www.chess.com"]